fUSD/lending_fUSD_20250526
["ID","MTS","AMOUNT","RATE_DAILY","PERIOD"]
[362369013,1748222810419,-300.0,0.00017,2]
[362369014,1748222810440,-107.87934356,0.00017038,2]
[362369015,1748222891980,421.44,0.00013699,2]
[362369016,1748222913747,6726.12754601,0.000149,2]
[362369017,1748222971110,-164.55520082,0.00016581,2]
[362369018,1748222976743,-162.20371821,0.00016581,2]
[362369019,1748222980339,-193.29782567,0.00016581,2]
[362369020,1748222982521,-271.4979275,0.00016581,2]
[362369021,1748222984638,-186.162716,0.00016581,2]
[362369022,1748222988531,-233.73004962,0.00016581,2]
[362369023,1748222991190,-168.006001,0.00016581,2]
[362369024,1748222992722,-55.86656118,0.00016581,2]
[362369025,1748223019983,216.05390447,0.00023,30]
[362369026,1748223020390,157.43362848,0.00015781,7]
[362369035,1748223032297,-92.12065644,0.00017038,2]
[362369036,1748223032307,-250.0,0.00017056,2]
[362369037,1748223032316,-243.75736182,0.0001715,2]
[362369038,1748223032327,-152.24263818,0.0001715,2]
[362369039,1748223032336,-200.0,0.00017291,2]
[362369040,1748223032345,-396.0,0.0001746,2]
[362369041,1748223032354,-396.0,0.0001777,2]
[362369042,1748223032364,-396.0,0.0001807,2]
[362369043,1748223032374,-396.0,0.0001838,2]
[362369044,1748223032384,-500.0,0.00018542,2]
[362369045,1748223032394,-1000.0,0.00018623,2]
[362369046,1748223032403,-331.4,0.00018666,2]
[362369047,1748223032412,-396.0,0.0001869,2]
[362369048,1748223032421,-200.0,0.00018695,2]
[362369049,1748223032430,-1200.0,0.00018699,2]
[362369050,1748223032440,-200.0,0.000187,2]
[362369051,1748223032449,-250.0,0.000187,2]
[362369052,1748223032459,-200.0,0.000187,2]
[362369053,1748223032468,-200.0,0.00018741,2]
[362369054,1748223032478,-250.0,0.00018741,2]
[362369055,1748223032488,-206.0,0.00018755,2]
[362369056,1748223032496,-300.0,0.00018843,2]
[362369057,1748223032506,-1435.32,0.00018844,2]
[362369058,1748223032515,-190.98103026,0.00018899,2]
[362369059,1748223032525,-17008.44619745,0.000189,3]
[362369098,1748223033875,160.71,0.00025384,120]
[362369099,1748223038306,-160.71,0.00018461,2]
[362369100,1748223038316,-300.0,0.00018899,2]
[362369101,1748223038325,-22263.23761168,0.000189,3]
[362369102,1748223038335,-200.41538341,0.000189,2]
[362369103,1748223038345,-286.0,0.00018972,2]
[362369104,1748223038355,-20890.72106159,0.00018973,2]
[362369105,1748223038400,-3009.27893841,0.00018973,2]
[362369106,1748223038410,-264.85,0.00018989,2]
[362369107,1748223038420,-151.0,0.00018999,2]
[362369108,1748223038431,-668.65185757,0.00018999,2]
[362369109,1748223038441,-303.66428515,0.00018999,2]
[362369110,1748223038452,-207.4,0.00018999,2]
[362369111,1748223038464,-396.0,0.00019,2]
[362369112,1748223038475,-350.0,0.00019,2]
[362369113,1748223038484,-1090.81,0.00019003,2]
[362369114,1748223038494,-200.41538323,0.00019107,2]
[362369115,1748223038504,-600.0,0.00019164,2]
[362369116,1748223038513,-500.0,0.00019164,2]
[362369117,1748223038523,-337.10820126,0.00019178,2]
[362369118,1748223038533,-150.69,0.00019178,2]
[362369119,1748223038543,-151.0,0.00019222,2]
[362369120,1748223038552,-165.02,0.00019238,2]
[362369121,1748223038562,-396.0,0.0001931,2]
[362369122,1748223038572,-200.41538323,0.00019314,2]
[362369123,1748223038583,-200.41538323,0.00019521,2]
[362369124,1748223038592,-396.0,0.0001961,2]
[362369126,1748223038602,-150.34,0.00019726,2]
[362369128,1748223038612,-200.41538323,0.00019728,2]
[362369130,1748223038622,-1000.0,0.00019798,2]
[362369132,1748223038632,-500.0,0.00019799,2]
[362369134,1748223038641,-26763.7983,0.00019799,2]
[362369136,1748223038651,-150.0,0.00019799,2]
[362369138,1748223038660,-2894.83,0.000198,2]
[362369140,1748223038670,-150.0,0.00019814,2]
[362369142,1748223038680,-150.0,0.00019848,2]
[362369145,1748223038689,-150.0,0.00019859,2]
[362369147,1748223038698,-165.02,0.00019873,2]
[362369150,1748223038707,-5800.0,0.00019883,2]
[362369152,1748223038717,-150.0,0.00019886,2]
[362369154,1748223038726,-5800.0,0.00019892,2]
[362369156,1748223038735,-622.06063393,0.00019895,2]
[362369159,1748223038745,-2500.0,0.00019895,2]
[362369161,1748223038754,-5800.0,0.000199,2]
[362369163,1748223038764,-1185.02337367,0.000199,2]
[362369165,1748223038774,-597.0392791,0.000199,2]
[362369167,1748223038784,-5000.0,0.000199,2]
[362369169,1748223038793,-5800.0,0.000199,2]
[362369171,1748223038804,-711.36493033,0.000199,7]
[362369173,1748223038814,-150.0,0.0001991,2]
[362369175,1748223038824,-396.0,0.0001992,2]
[362369177,1748223038833,-1721.54,0.00019925,2]
[362369179,1748223038843,-224.47,0.00019926,2]
[362369181,1748223038853,-200.41538323,0.00019934,2]
[362369183,1748223038863,-150.0,0.00019967,2]
[362369185,1748223038874,-500.0,0.00019973,2]
[362369187,1748223038883,-500.0,0.00019973,2]
[362369189,1748223038893,-500.0,0.00019973,2]
[362369191,1748223038903,-500.0,0.00019973,2]
[362369193,1748223038912,-439.72029133,0.00019973,2]
[362369195,1748223038922,-500.0,0.00019982,2]
[362369197,1748223038931,-500.0,0.00019982,2]
[362369199,1748223038941,-187.34,0.00019982,3]
[362369201,1748223038950,-150.0,0.00019989,2]
[362369203,1748223038960,-150.0,0.00019989,2]
[362369205,1748223038969,-13215.66607742,0.0001999,2]
[362369218,1748223039234,-4738.38047264,0.0001999,2]
[362369220,1748223039243,-152.73,0.0001999,2]
[362369222,1748223039252,-152.73,0.0001999,2]
[362369224,1748223039263,-152.73,0.0001999,2]
[362369226,1748223039272,-152.73,0.0001999,2]
[362369227,1748223039282,-152.73,0.0001999,2]
[362369229,1748223039291,-198.92292003,0.0001999,2]
[362369231,1748223039302,-177.75495928,0.00019992,2]
[362369233,1748223039311,-500.0,0.00019992,2]
[362369235,1748223039320,-500.0,0.00019992,2]
[362369237,1748223039330,-500.0,0.00019992,2]
[362369239,1748223039339,-500.0,0.00019992,2]
[362369241,1748223039349,-159.33782107,0.00019992,2]
[362369243,1748223039358,-500.0,0.00019992,2]
[362369245,1748223039369,-500.0,0.00019992,2]
[362369247,1748223039378,-500.0,0.00019992,2]
[362369249,1748223039389,-500.0,0.00019992,2]
[362369251,1748223039398,-173.99417658,0.00019992,2]
[362369253,1748223039410,-326.00582342,0.00019992,2]
[362369255,1748223039420,-500.0,0.00019992,2]
[362369257,1748223039430,-500.0,0.00019992,2]
[362369259,1748223039439,-500.0,0.00019992,2]
[362369261,1748223039448,-500.0,0.00019992,2]
[362369263,1748223039458,-500.0,0.00019992,2]
[362369265,1748223039467,-500.0,0.00019992,2]
[362369267,1748223039477,-500.0,0.00019992,2]
[362369269,1748223039486,-500.0,0.00019992,2]
[362369271,1748223039495,-480.0,0.00019994,2]
[362369273,1748223039504,-420.0,0.00019994,2]
[362369275,1748223039513,-420.0,0.00019994,2]
[362369277,1748223039523,-420.0,0.00019994,2]
[362369279,1748223039532,-420.0,0.00019994,2]
[362369281,1748223039542,-420.0,0.00019994,2]
[362369283,1748223039551,-420.0,0.00019994,2]
[362369285,1748223039559,-222.92854078,0.00019994,2]
[362369287,1748223039568,-420.0,0.00019994,2]
[362369289,1748223039577,-234.49,0.00019994,2]
[362369291,1748223039588,-420.0,0.00019994,2]
[362369293,1748223039597,-420.0,0.00019994,2]
[362369295,1748223039606,-420.0,0.00019994,2]
[362369297,1748223039616,-420.0,0.00019994,2]
[362369299,1748223039625,-308.9260811,0.00019994,2]
[362369301,1748223039634,-420.0,0.00019994,2]
[362369303,1748223039643,-156.14,0.00019994,2]
[362369304,1748223039652,-289.76327642,0.00019994,2]
[362369306,1748223039662,-420.0,0.00019994,2]
[362369308,1748223039672,-665.15,0.00019994,2]
[362369310,1748223039681,-420.0,0.00019994,2]
[362369312,1748223039690,-420.0,0.00019994,2]
[362369314,1748223039700,-420.0,0.00019994,2]
[362369316,1748223039709,-420.0,0.00019994,2]
[362369318,1748223039718,-420.0,0.00019994,2]
[362369320,1748223039727,-461.04121937,0.00019994,2]
[362369322,1748223039736,-291.25620891,0.00019994,2]
[362369324,1748223039745,-488.96724204,0.00019994,2]
[362369326,1748223039755,-1768.8730799,0.00019995,2]
[362369327,1748223039763,-4593.30513766,0.00019995,2]
[362369328,1748223040457,-99181.55095134,0.00019995,2]
[362369329,1748223040467,-23798.0793587,0.00019995,2]
[362369330,1748223040477,-20350.2265234,0.00019995,2]
[362369331,1748223040487,-11183.6553616,0.00019995,2]
[362369332,1748223040497,-4358.8314329,0.00019995,2]
[362369333,1748223040506,-83737.2003473,0.00019995,2]
[362369334,1748223040515,-93414.8399885,0.00019995,2]
[362369335,1748223040525,-11628.93441518,0.00019998,2]
[362369336,1748223040535,-297.3219665,0.00019999,2]
[362369337,1748223040545,-420.0,0.00019999,2]
[362369338,1748223040554,-420.0,0.00019999,2]
[362369339,1748223040564,-420.0,0.00019999,2]
[362369340,1748223040573,-420.0,0.00019999,2]
[362369341,1748223040582,-420.0,0.00019999,2]
[362369342,1748223040592,-420.0,0.00019999,2]
[362369343,1748223040601,-234.36,0.00019999,2]
[362369344,1748223040610,-420.0,0.00019999,2]
[362369345,1748223040620,-420.0,0.00019999,2]
[362369346,1748223040639,-420.0,0.00019999,2]
[362369347,1748223040649,-1085.26940586,0.00019999,5]
[362369348,1748223040660,-1524.9243,0.00019999,2]
[362369349,1748223040669,-420.0,0.00019999,2]
[362369350,1748223040680,-549.56,0.00019999,2]
[362369351,1748223040690,-469.46,0.00019999,2]
[362369352,1748223040700,-420.0,0.00019999,2]
[362369353,1748223040710,-420.0,0.00019999,2]
[362369354,1748223040720,-420.0,0.00019999,2]
[362369355,1748223040731,-500.0,0.00019999,2]
[362369356,1748223040740,-21836.07996085,0.00019999,2]
[362369357,1748223040750,-557.27881107,0.00019999,2]
[362369358,1748223040760,-273.93727611,0.00019999,2]
[362369359,1748223040770,-420.0,0.00019999,2]
[362369360,1748223040780,-387.7476239,0.00019999,2]
[362369361,1748223040790,-420.0,0.00019999,2]
[362369362,1748223040800,-59185.42023511,0.00019999,2]
[362369363,1748223040811,-420.0,0.00019999,2]
[362369364,1748223040822,-420.0,0.00019999,2]
[362369365,1748223040832,-420.0,0.00019999,2]
[362369367,1748223040842,-420.0,0.00019999,2]
[362369369,1748223040852,-420.0,0.00019999,2]
[362369371,1748223040862,-420.0,0.00019999,2]
[362369373,1748223040872,-420.0,0.00019999,2]
[362369375,1748223040881,-420.0,0.00019999,2]
[362369377,1748223040891,-464.50872521,0.00019999,2]
[362369379,1748223040901,-420.0,0.00019999,2]
[362369381,1748223040910,-420.0,0.00019999,2]
[362369383,1748223040920,-420.0,0.00019999,2]
[362369385,1748223040931,-420.0,0.00019999,2]
[362369387,1748223040940,-420.0,0.00019999,2]
[362369389,1748223040950,-420.0,0.00019999,2]
[362369390,1748223040959,-420.0,0.00019999,2]
[362369393,1748223040969,-420.0,0.00019999,2]
[362369395,1748223040979,-420.0,0.00019999,2]
[362369397,1748223040989,-420.0,0.00019999,2]
[362369399,1748223040999,-420.0,0.00019999,2]
[362369401,1748223041008,-420.0,0.00019999,2]
[362369403,1748223041018,-420.0,0.00019999,2]
[362369404,1748223041028,-420.0,0.00019999,2]
[362369407,1748223041038,-420.0,0.00019999,2]
[362369408,1748223041047,-420.0,0.00019999,2]
[362369410,1748223041057,-420.0,0.00019999,2]
[362369413,1748223041068,-420.0,0.00019999,2]
[362369414,1748223041077,-420.0,0.00019999,2]
[362369416,1748223041087,-665.15,0.00019999,2]
[362369418,1748223041097,-504.72,0.00019999,2]
[362369420,1748223041106,-665.15,0.00019999,2]
[362369422,1748223041115,-665.15,0.00019999,2]
[362369424,1748223041126,-665.15,0.00019999,2]
[362369426,1748223041138,-665.15,0.00019999,2]
[362369428,1748223041147,-665.15,0.00019999,2]
[362369430,1748223041156,-665.15,0.00019999,2]
[362369432,1748223041166,-665.15,0.00019999,2]
[362369434,1748223041179,-167.06296721,0.00019999,2]
[362369436,1748223041189,-665.15,0.00019999,2]
[362369438,1748223041201,-665.15,0.00019999,2]
[362369440,1748223041210,-665.15,0.00019999,2]
[362369442,1748223041220,-665.15,0.00019999,2]
[362369444,1748223041230,-665.15,0.00019999,2]
[362369446,1748223041240,-665.15,0.00019999,2]
[362369448,1748223041249,-665.15,0.00019999,2]
[362369450,1748223041259,-665.15,0.00019999,2]
[362369452,1748223041268,-665.15,0.00019999,2]
[362369454,1748223041278,-665.15,0.00019999,2]
[362369456,1748223041287,-665.15,0.00019999,2]
[362369458,1748223041297,-665.15,0.00019999,2]
[362369460,1748223041307,-665.15,0.00019999,2]
[362369462,1748223041316,-665.15,0.00019999,2]
[362369464,1748223041326,-665.310003,0.00019999,2]
[362369466,1748223041336,-420.0,0.00019999,2]
[362369468,1748223041345,-420.0,0.00019999,2]
[362369470,1748223041355,-420.0,0.00019999,2]
[362369472,1748223041365,-420.0,0.00019999,2]
[362369474,1748223041375,-420.0,0.00019999,2]
[362369476,1748223041384,-457.9175,0.00019999,2]
[362369478,1748223041393,-159.95285527,0.00019999,2]
[362369480,1748223041403,-210.86911859,0.00019999,2]
[362369489,1748223041667,-4835.0,0.00019999,2]
[362369490,1748223041688,-297.17058293,0.0002,2]
[362369491,1748223041698,-53956.98486242,0.0002,2]
[362369492,1748223041726,-3999.5071921,0.0002,2]
[362369493,1748223046351,-562.06,0.0001999,3]
[362369494,1748223046362,-54012.94,0.0002,2]
[362369495,1748223046373,-634.40000001,0.0002,2]
[362369496,1748223046577,-16672.71040964,0.0002,2]
[362369497,1748223046591,-1269.7494336,0.0002,2]
[362369498,1748223046603,-955.0,0.0002,2]
[362369675,1748223232537,238.25902599,0.000273,120]
[362369677,1748223339260,9974.95,0.00027397,120]
[362369678,1748223431384,409.58656679,0.00027388,120]
[362369679,1748223512703,150.0,0.00027388,120]
[362369680,1748223525413,912.81,0.00027388,120]
[362369681,1748223577103,3000.0,0.00027388,120]
[362369683,1748223594235,600.0,0.00027,120]
[362369684,1748223609380,22000.00901119,0.00027388,120]
[362369685,1748223624413,300.0,0.00023,30]
[362369686,1748223694408,600.0,0.00027,120]
[362369687,1748223779461,1833.87376031,0.00027397,120]
[362369688,1748223945298,317.0,0.00027397,120]
[362369689,1748224140968,250.0,0.00015,2]
[362369690,1748224206619,408.61,0.00013699,2]
[362369697,1748224231348,-300.0,0.00017,2]
[362369698,1748224231357,-250.0,0.00017811,2]
[362369699,1748224231367,-250.0,0.00018453,2]
[362369700,1748224231379,-157.82,0.00018623,2]
[362369701,1748224231388,-160.58,0.00018625,3]
[362369702,1748224231400,-157.82,0.00018628,2]
[362369703,1748224231409,-157.82,0.00018634,2]
[362369704,1748224231419,-157.82,0.00018639,2]
[362369705,1748224231429,-157.82,0.00018645,2]
[362369706,1748224231438,-157.82,0.0001865,2]
[362369707,1748224231447,-157.82,0.00018656,2]
[362369708,1748224231457,-157.82,0.00018661,2]
[362369709,1748224231466,-157.82,0.00018667,2]
[362369710,1748224231475,-157.82,0.00018672,2]
[362369711,1748224231485,-157.82,0.00018678,2]
[362369712,1748224231495,-157.82,0.00018683,2]
[362369713,1748224231506,-157.82,0.00018689,2]
[362369714,1748224231515,-157.82,0.00018694,2]
[362369715,1748224231524,-157.82,0.000187,2]
[362369716,1748224231534,-200.0,0.000187,2]
[362369717,1748224231544,-250.0,0.000187,2]
[362369718,1748224231553,-157.82,0.00018705,2]
[362369719,1748224231563,-157.82,0.0001871,2]
[362369720,1748224231574,-157.82,0.00018716,2]
[362369721,1748224231584,-159.89,0.00018719,2]
[362369722,1748224231594,-200.0,0.00018733,2]
[362369723,1748224231603,-165.7,0.00018747,2]
[362369724,1748224231613,-200.0,0.00018841,2]
[362369725,1748224231622,-1000.0,0.00018843,2]
[362369726,1748224231631,-1200.0,0.00018843,2]
[362369727,1748224231640,-300.0,0.00018947,2]
[362369728,1748224231649,-2928.19109273,0.00018948,2]
[362369729,1748224231663,-4008.60135854,0.00018948,2]
[362369730,1748224231674,-3441.49754873,0.00018948,2]
[362369731,1748224231684,-250.0,0.00018966,2]
[362369732,1748224231693,-207.4,0.00018999,2]
[362369733,1748224231704,-350.0,0.00019,2]
[362369734,1748224231714,-161.2,0.00019022,2]
[362369735,1748224231724,-161.2,0.00019041,2]
[362369736,1748224231735,-161.2,0.0001906,2]
[362369737,1748224231747,-161.2,0.00019079,2]
[362369738,1748224231757,-161.2,0.00019098,2]
[362369739,1748224231768,-150.0,0.000191,2]
[362369740,1748224231779,-161.2,0.00019117,2]
[362369741,1748224231788,-600.0,0.00019164,2]
[362369742,1748224231798,-5.47008037,0.00019164,2]
[362369743,1748224231810,-494.52991963,0.00019164,2]
[362369744,1748224231820,-150.72,0.000192,2]
[362369745,1748224231831,-1159.91,0.000192,2]
[362369746,1748224231842,-150.0,0.000192,2]
[362369747,1748224231852,-150.0,0.000192,2]
[362369748,1748224231863,-1126.11,0.000195,3]
[362369749,1748224231875,-207.0,0.00019505,2]
[362369750,1748224231884,-204.00002,0.00019505,2]
[362369751,1748224231896,-500.0,0.00019534,2]
[362369752,1748224231907,-513.87249,0.00019599,2]
[362369753,1748224231918,-699.71024274,0.000197,2]
[362369754,1748224231930,-453.63,0.00019726,2]
[362369756,1748224231939,-453.63,0.00019726,2]
[362369757,1748224231948,-353.5,0.00019726,2]
[362369759,1748224231958,-454.38,0.00019726,2]
[362369761,1748224231967,-342.74,0.00019726,2]
[362369763,1748224231977,-453.63,0.00019726,2]
[362369765,1748224231986,-453.63,0.00019726,2]
[362369767,1748224231996,-150.0,0.000198,2]
[362369769,1748224232005,-151.0,0.00019888,2]
[362369772,1748224232014,-2016.0441,0.00019894,2]
[362369774,1748224232023,-227.1363,0.00019894,2]
[362369776,1748224232032,-318.0644,0.00019894,2]
[362369778,1748224232042,-279.44231816,0.00019895,2]
[362369780,1748224232051,-2133.71798017,0.00019895,2]
[362369782,1748224232061,-500.0,0.00019895,2]
[362369784,1748224232069,-409.645,0.00019895,2]
[362369786,1748224232078,-2133.71798015,0.00019896,2]
[362369788,1748224232087,-2133.71798015,0.00019896,2]
[362369791,1748224232096,-2133.71798015,0.00019897,2]
[362369794,1748224232105,-2133.71798015,0.00019897,2]
[362369796,1748224232114,-2133.71798015,0.00019898,2]
[362369798,1748224232124,-2133.71798015,0.00019898,2]
[362369800,1748224232133,-2133.71798015,0.00019899,2]
[362369802,1748224232142,-2133.71798015,0.00019899,2]
[362369803,1748224232151,-421.71,0.000199,2]
[362369805,1748224232160,-857.03882792,0.000199,3]
[362369807,1748224232168,-1508.83825595,0.000199,2]
[362369809,1748224232177,-5000.0,0.000199,2]
[362369811,1748224232186,-2133.71798015,0.000199,2]
[362369813,1748224232195,-1389.52,0.00019934,2]
[362369815,1748224232204,-168.0,0.00019973,2]
[362369817,1748224232215,-470.79479735,0.00019973,2]
[362369819,1748224232224,-551.13277758,0.00019973,2]
[362369821,1748224232233,-501.33812546,0.00019973,2]
[362369823,1748224232242,-505.45959946,0.00019973,2]
[362369825,1748224232251,-500.0,0.00019973,2]
[362369827,1748224232260,-514.43326613,0.00019973,2]
[362369829,1748224232270,-567.81760652,0.00019973,2]
[362369831,1748224232279,-500.0,0.00019973,2]
[362369833,1748224232288,-501.54900327,0.00019973,2]
[362369835,1748224232297,-506.22462183,0.00019973,2]
[362369837,1748224232306,-506.00183981,0.00019973,2]
[362369839,1748224232316,-503.47962988,0.00019973,2]
[362369841,1748224232324,-374.68,0.00019985,3]
[362369843,1748224232333,-211.10632547,0.0001999,2]
[362369845,1748224232344,-500.0,0.00019994,2]
[362369847,1748224232352,-500.0,0.00019994,2]
[362369848,1748224232362,-500.0,0.00019994,2]
[362369850,1748224232372,-500.0,0.00019994,2]
[362369852,1748224232381,-500.0,0.00019994,2]
[362369854,1748224232390,-500.0,0.00019994,2]
[362369856,1748224232399,-500.0,0.00019994,2]
[362369858,1748224232410,-500.0,0.00019994,2]
[362369860,1748224232419,-500.0,0.00019994,2]
[362369862,1748224232428,-500.0,0.00019994,2]
[362369864,1748224232438,-500.0,0.00019994,2]
[362369866,1748224232447,-500.0,0.00019994,2]
[362369868,1748224232456,-500.0,0.00019994,2]
[362369870,1748224232466,-500.0,0.00019994,2]
[362369872,1748224232475,-577.05971773,0.00019994,2]
[362369874,1748224232484,-577.05971773,0.00019994,2]
[362369876,1748224232496,-577.05971773,0.00019994,2]
[362369878,1748224232506,-577.05971773,0.00019994,2]
[362369880,1748224232515,-577.05971773,0.00019994,2]
[362369882,1748224232524,-577.05971773,0.00019994,2]
[362369884,1748224232533,-577.05971773,0.00019994,2]
[362369886,1748224232543,-577.05971773,0.00019994,2]
[362369888,1748224232552,-577.05971773,0.00019994,2]
[362369890,1748224232561,-577.05971773,0.00019994,2]
[362369892,1748224232570,-577.05971773,0.00019994,2]
[362369894,1748224232579,-577.05971773,0.00019994,2]
[362369896,1748224232589,-577.05971773,0.00019994,2]
[362369898,1748224232598,-14150.7404454,0.00019994,2]
[362369900,1748224232607,-544.38047412,0.00019994,2]
[362369902,1748224232617,-420.0,0.00019994,2]
[362369904,1748224232626,-416.02509014,0.00019994,2]
[362369906,1748224232636,-420.0,0.00019994,2]
[362369908,1748224232645,-444.80161547,0.00019994,2]
[362369910,1748224232654,-449.02083938,0.00019994,2]
[362369912,1748224232663,-443.45422202,0.00019994,2]
[362369914,1748224232671,-420.0,0.00019994,2]
[362369916,1748224232682,-454.92416876,0.00019994,2]
[362369917,1748224232691,-420.0,0.00019994,2]
[362369919,1748224232702,-568.68824262,0.00019994,2]
[362369921,1748224232712,-456.10242033,0.00019994,2]
[362369923,1748224232722,-445.94837742,0.00019994,2]
[362369925,1748224232731,-420.0,0.00019994,2]
[362369927,1748224232740,-420.0,0.00019994,2]
[362369929,1748224232749,-553.76052749,0.00019994,2]
[362369931,1748224232758,-436.70034556,0.00019994,2]
[362369933,1748224232767,-225.6526245,0.00019994,2]
[362369935,1748224232776,-510.51985262,0.00019994,2]
[362369937,1748224232785,-446.81273925,0.00019994,2]
[362369939,1748224232796,-231.35943834,0.00019994,2]
[362369941,1748224232805,-505.27563617,0.00019994,2]
[362369943,1748224232815,-448.40417828,0.00019994,2]
[362369945,1748224232824,-429.96363907,0.00019994,2]
[362369947,1748224232833,-423.45696891,0.00019994,2]
[362369949,1748224232842,-424.39334644,0.00019994,2]
[362369951,1748224232851,-360.57412447,0.00019994,2]
[362369953,1748224232859,-427.67318325,0.00019994,2]
[362369955,1748224232868,-427.32244974,0.00019994,2]
[362369957,1748224232877,-413.23829425,0.00019994,2]
[362369959,1748224232887,-420.0,0.00019994,2]
[362369961,1748224232895,-444.28988088,0.00019994,2]
[362369963,1748224232905,-423.31664268,0.00019994,2]
[362369965,1748224232914,-424.17859056,0.00019994,2]
[362369967,1748224232923,-423.90691195,0.00019994,2]
[362369969,1748224232932,-434.85654681,0.00019994,2]
[362369971,1748224232941,-429.74050187,0.00019994,2]
[362369973,1748224232950,-444.64251733,0.00019994,2]
[362369975,1748224232959,-426.09402406,0.00019994,2]
[362369976,1748224232968,-498.85347319,0.00019994,2]
[362369978,1748224232977,-422.97041308,0.00019994,2]
[362369980,1748224232987,-330.30501434,0.00019994,2]
[362369982,1748224232996,-424.89533078,0.00019994,2]
[362369984,1748224233005,-500.0,0.00019994,2]
[362369986,1748224233014,-500.0,0.00019994,2]
[362369988,1748224233023,-426.11100159,0.00019994,2]
[362369990,1748224233033,-237.40582294,0.00019994,2]
[362369992,1748224233042,-448.08023228,0.00019994,2]
[362369994,1748224233051,-493.24693094,0.00019994,2]
[362369996,1748224233060,-457.63072118,0.00019994,2]
[362369998,1748224233070,-447.86993659,0.00019994,2]
[362370000,1748224233079,-430.2881854,0.00019994,2]
[362370002,1748224233088,-445.19331632,0.00019994,2]
[362370004,1748224233097,-361.74921991,0.00019994,2]
[362370006,1748224233106,-388.3360203,0.00019994,2]
[362370008,1748224233115,-420.0,0.00019994,2]
[362370010,1748224233124,-420.0,0.00019994,2]
[362370012,1748224233133,-420.0,0.00019994,2]
[362370014,1748224233142,-450.12786147,0.00019994,2]
[362370016,1748224233151,-420.0,0.00019994,2]
[362370017,1748224233160,-435.87446616,0.00019994,2]
[362370019,1748224233169,-420.0,0.00019994,2]
[362370020,1748224233177,-420.0,0.00019994,2]
[362370021,1748224233186,-445.72719451,0.00019994,2]
[362370022,1748224233195,-291.64968681,0.00019994,2]
[362370023,1748224233204,-434.90254726,0.00019994,2]
[362370024,1748224233214,-462.37709749,0.00019994,2]
[362370025,1748224233223,-448.73270403,0.00019994,2]
[362370026,1748224233232,-438.78003165,0.00019994,2]
[362370027,1748224233242,-467.22888473,0.00019994,2]
[362370028,1748224233251,-559.77995161,0.00019994,2]
[362370029,1748224233260,-420.0,0.00019994,2]
[362370030,1748224233270,-424.30032683,0.00019994,2]
[362370031,1748224233279,-446.34006935,0.00019994,2]
[362370032,1748224233288,-420.0,0.00019994,2]
[362370033,1748224233297,-420.0,0.00019994,2]
[362370034,1748224233307,-178.17669044,0.00019994,2]
[362370036,1748224233317,-244.33853488,0.00019994,2]
[362370038,1748224233326,-506.99296823,0.00019994,2]
[362370040,1748224233336,-315.05025383,0.00019994,2]
[362370042,1748224233346,-331.00843964,0.00019994,2]
[362370044,1748224233355,-250.9530659,0.00019994,2]
[362370046,1748224233364,-210.86911859,0.00019994,2]
[362370047,1748224233374,-199.88131524,0.00019994,2]
[362370049,1748224233383,-420.0,0.00019994,2]
[362370051,1748224233393,-513.41078393,0.00019994,2]
[362370053,1748224233402,-425.5219196,0.00019994,2]
[362370055,1748224233411,-424.99847265,0.00019994,2]